[Event "Titled Tuesday Blitz May 4 2021"]
[White "Sergey85Rodchenkov"]
[Black "Shipov, Sergei"]
[BlackFideId "4113624"]
[WhiteElo "2538"]
[BlackElo "2732"]
[Result "0-1"]
[Round "04"]
[TimeControl "180+1"]
[Date "2021.05.04"]
[WhiteClock "0:00:11"]
[BlackClock "0:00:33"]

1. e4 {[%clk 0:03:00]}  e6 {[%clk 0:02:58]} 2. d4 {[%clk 0:02:57]}  d5 {[%clk 0:02:58]} 3. Nd2 {[%clk 0:02:56]}  Be7 {[%clk 0:02:58]} 4. c3 {[%clk 0:02:55]}  c5 {[%clk 0:02:58]} 5. Ngf3 {[%clk 0:02:55]}  cxd4 {[%clk 0:02:57]} 6. Nxd4 {[%clk 0:02:55]}  Nc6 {[%clk 0:02:57]} 7. Nxc6 {[%clk 0:02:52]}  bxc6 {[%clk 0:02:57]} 8. Bd3 {[%clk 0:02:52]}  Nf6 {[%clk 0:02:57]} 9. Qe2 {[%clk 0:02:53]}  a5 {[%clk 0:02:55]} 10. O-O {[%clk 0:02:52]}  a4 {[%clk 0:02:55]} 11. Re1 {[%clk 0:02:51]}  O-O {[%clk 0:02:55]} 12. e5 {[%clk 0:02:40]}  Nd7 {[%clk 0:02:54]} 13. Nf3 {[%clk 0:02:37]}  c5 {[%clk 0:02:23]} 14. h4 {[%clk 0:02:25]}  h6 {[%clk 0:02:22]} 15. h5 {[%clk 0:02:25]}  Qb6 {[%clk 0:02:18]} 16. Bf4 {[%clk 0:02:21]}  Ba6 {[%clk 0:02:18]} 17. c4 {[%clk 0:02:05]}  Bxc4 {[%clk 0:02:13]} 18. Bxc4 {[%clk 0:02:05]}  dxc4 {[%clk 0:02:14]} 19. Qxc4 {[%clk 0:02:05]}  Qb4 {[%clk 0:02:13]} 20. b3 {[%clk 0:01:33]}  Nb6 {[%clk 0:02:11]} 21. Qxb4 {[%clk 0:01:32]}  cxb4 {[%clk 0:02:11]} 22. Rec1 {[%clk 0:01:14]}  Nd5 {[%clk 0:02:11]} 23. Bd2 {[%clk 0:01:13]}  axb3 {[%clk 0:02:01]} 24. axb3 {[%clk 0:01:13]}  Ra3 {[%clk 0:02:02]} 25. Rab1 {[%clk 0:01:09]}  Rfa8 {[%clk 0:01:59]} 26. Rc4 {[%clk 0:01:08]}  Ra2 {[%clk 0:01:57]} 27. Be1 {[%clk 0:01:07]}  Ra1 {[%clk 0:01:54]} 28. Rcc1 {[%clk 0:01:05]}  Rxb1 {[%clk 0:01:54]} 29. Rxb1 {[%clk 0:01:05]}  Ra2 {[%clk 0:01:53]} 30. g3 {[%clk 0:01:01]}  Bc5 {[%clk 0:01:48]} 31. Kf1 {[%clk 0:01:00]}  Rc2 {[%clk 0:01:38]} 32. Nd2 {[%clk 0:00:53]}  Bd4 {[%clk 0:01:09]} 33. Nc4 {[%clk 0:00:47]}  Nc3 {[%clk 0:01:02]} 34. Ra1 {[%clk 0:00:36]}  Ne4 {[%clk 0:01:02]} 35. Ra8+ {[%clk 0:00:35]}  Kh7 {[%clk 0:01:01]} 36. Nd6 {[%clk 0:00:31]}  Nxf2 {[%clk 0:00:33]} 37. Nxf7 {[%clk 0:00:26]}  g6 {[%clk 0:00:34]} 38. Rd8 {[%clk 0:00:19]}  Ng4 {[%clk 0:00:33]} 39. Rxd4 {[%clk 0:00:16]}  Nh2+ {[%clk 0:00:33]} 40. Kg1 {[%clk 0:00:14]}  Nf3+ {[%clk 0:00:34]} 41. Kf1 {[%clk 0:00:14]}  Nxd4 {[%clk 0:00:34]} 42. Bxb4 {[%clk 0:00:14]}  gxh5 {[%clk 0:00:34]} 43. Bd6 {[%clk 0:00:12]}  Nxb3 {[%clk 0:00:33]} 44. Nd8 {[%clk 0:00:11]}  Nd4 {[%clk 0:00:33]} 0-1


[Site "https://www.chess.com"]

[Event "Titled Tuesday Blitz May 4 2021"]
[White "Seul, Georg"]
[Black "Samadov, Read"]
[WhiteFideId "4601653"]
[BlackFideId "13417444"]
[WhiteElo "2332"]
[BlackElo "2084"]
[Result "0-1"]
[Round "04"]
[TimeControl "180+1"]
[Date "2021.05.04"]
[WhiteClock "0:00:01"]
[BlackClock "0:00:04"]

1. e4 {[%clk 0:03:00]}  c5 {[%clk 0:03:00]} 2. Nf3 {[%clk 0:03:00]}  d6 {[%clk 0:03:00]} 3. Bc4 {[%clk 0:02:59]}  Nc6 {[%clk 0:02:58]} 4. O-O {[%clk 0:02:56]}  Nf6 {[%clk 0:02:58]} 5. Re1 {[%clk 0:02:54]}  e6 {[%clk 0:02:58]} 6. Bb3 {[%clk 0:02:54]}  Be7 {[%clk 0:02:57]} 7. c3 {[%clk 0:02:53]}  O-O {[%clk 0:02:50]} 8. d4 {[%clk 0:02:53]}  b5 {[%clk 0:02:40]} 9. Bg5 {[%clk 0:02:44]}  Bb7 {[%clk 0:02:37]} 10. Nbd2 {[%clk 0:02:43]}  Rc8 {[%clk 0:02:28]} 11. Rc1 {[%clk 0:02:31]}  a6 {[%clk 0:02:17]} 12. a3 {[%clk 0:02:23]}  h6 {[%clk 0:02:12]} 13. Bh4 {[%clk 0:02:22]}  c4 {[%clk 0:02:06]} 14. Bc2 {[%clk 0:02:21]}  e5 {[%clk 0:02:06]} 15. Nf1 {[%clk 0:02:16]}  Nh5 {[%clk 0:02:01]} 16. Bxe7 {[%clk 0:01:39]}  Qxe7 {[%clk 0:02:00]} 17. Ne3 {[%clk 0:01:38]}  Rfd8 {[%clk 0:01:55]} 18. Nd5 {[%clk 0:01:26]}  Qe8 {[%clk 0:01:52]} 19. Qd2 {[%clk 0:00:59]}  Ne7 {[%clk 0:01:43]} 20. Ne3 {[%clk 0:00:50]}  Nf4 {[%clk 0:01:42]} 21. g3 {[%clk 0:00:49]}  Ne6 {[%clk 0:01:41]} 22. Rcd1 {[%clk 0:00:43]}  f6 {[%clk 0:01:36]} 23. Nh4 {[%clk 0:00:42]}  Ng5 {[%clk 0:01:32]} 24. d5 {[%clk 0:00:35]}  Ng6 {[%clk 0:01:30]} 25. Nef5 {[%clk 0:00:34]}  Nxh4 {[%clk 0:01:22]} 26. Nxh4 {[%clk 0:00:33]}  Qh5 {[%clk 0:01:22]} 27. Qe3 {[%clk 0:00:30]}  Rc7 {[%clk 0:01:14]} 28. Rd2 {[%clk 0:00:23]}  Nh3+ {[%clk 0:01:05]} 29. Kg2 {[%clk 0:00:19]}  Nf4+ {[%clk 0:01:04]} 30. Kh1 {[%clk 0:00:19]}  Bc8 {[%clk 0:00:51]} 31. Bd1 {[%clk 0:00:18]}  Bg4 {[%clk 0:00:41]} 32. Bxg4 {[%clk 0:00:17]}  Qxg4 {[%clk 0:00:41]} 33. f3 {[%clk 0:00:15]}  Qg5 {[%clk 0:00:38]} 34. gxf4 {[%clk 0:00:14]}  Qxh4 {[%clk 0:00:38]} 35. f5 {[%clk 0:00:14]}  Qg5 {[%clk 0:00:36]} 36. Qf2 {[%clk 0:00:13]}  Qh5 {[%clk 0:00:29]} 37. Rg1 {[%clk 0:00:12]}  Qf7 {[%clk 0:00:27]} 38. Rg6 {[%clk 0:00:12]}  Kf8 {[%clk 0:00:25]} 39. Qg3 {[%clk 0:00:12]}  Rdd7 {[%clk 0:00:23]} 40. Rg2 {[%clk 0:00:11]}  Ke8 {[%clk 0:00:22]} 41. Qh4 {[%clk 0:00:10]}  Qf8 {[%clk 0:00:18]} 42. Rg1 {[%clk 0:00:10]}  Kd8 {[%clk 0:00:18]} 43. Qf2 {[%clk 0:00:09]}  Rb7 {[%clk 0:00:15]} 44. a4 {[%clk 0:00:08]}  Kc8 {[%clk 0:00:11]} 45. axb5 {[%clk 0:00:08]}  axb5 {[%clk 0:00:12]} 46. Ra1 {[%clk 0:00:08]}  Kb8 {[%clk 0:00:12]} 47. Ra5 {[%clk 0:00:07]}  Qd8 {[%clk 0:00:11]} 48. Ra3 {[%clk 0:00:07]}  Ra7 {[%clk 0:00:09]} 49. Rxa7 {[%clk 0:00:06]}  Rxa7 {[%clk 0:00:10]} 50. Rg1 {[%clk 0:00:05]}  Qa5 {[%clk 0:00:08]} 51. Qe3 {[%clk 0:00:04]}  Qc7 {[%clk 0:00:07]} 52. h4 {[%clk 0:00:04]}  Ra2 {[%clk 0:00:05]} 53. Rg2 {[%clk 0:00:04]}  Ra1+ {[%clk 0:00:05]} 54. Kh2 {[%clk 0:00:03]}  Ra7 {[%clk 0:00:06]} 55. Kh3 {[%clk 0:00:03]}  Qf7 {[%clk 0:00:06]} 56. Qg1 {[%clk 0:00:03]}  Qc7 {[%clk 0:00:05]} 57. Rg3 {[%clk 0:00:02]}  Kc8 {[%clk 0:00:05]} 58. Rg6 {[%clk 0:00:01]}  Kd8 {[%clk 0:00:04]} 59. Qf2 {[%clk 0:00:01]}  Ke8 {[%clk 0:00:04]} 60. Rg1 {[%clk 0:00:01]}  Kf8 {[%clk 0:00:04]} 0-1


[Site "https://www.chess.com"]

[Event "Titled Tuesday Blitz May 4 2021"]
[White "Shahade, Gregory"]
[Black "Zhigalko, Sergei"]
[WhiteFideId "2009064"]
[BlackFideId "13502956"]
[WhiteElo "2644"]
[BlackElo "2662"]
[Result "0-1"]
[Round "04"]
[TimeControl "180+1"]
[Date "2021.05.04"]
[WhiteClock "0:00:05"]
[BlackClock "0:00:05"]

1. e4 {[%clk 0:03:00]}  c5 {[%clk 0:02:59]} 2. Nf3 {[%clk 0:03:01]}  Nc6 {[%clk 0:02:59]} 3. d4 {[%clk 0:03:01]}  cxd4 {[%clk 0:02:59]} 4. Nxd4 {[%clk 0:03:02]}  Nf6 {[%clk 0:03:00]} 5. Nc3 {[%clk 0:03:03]}  e5 {[%clk 0:03:00]} 6. Ndb5 {[%clk 0:03:04]}  d6 {[%clk 0:03:00]} 7. Bg5 {[%clk 0:03:04]}  a6 {[%clk 0:03:01]} 8. Na3 {[%clk 0:03:05]}  b5 {[%clk 0:03:01]} 9. Nd5 {[%clk 0:03:05]}  Be7 {[%clk 0:03:02]} 10. Bxf6 {[%clk 0:03:06]}  Bxf6 {[%clk 0:03:03]} 11. c4 {[%clk 0:03:06]}  b4 {[%clk 0:03:03]} 12. Nc2 {[%clk 0:03:06]}  O-O {[%clk 0:03:03]} 13. g3 {[%clk 0:03:05]}  a5 {[%clk 0:03:03]} 14. Bg2 {[%clk 0:03:05]}  Bg5 {[%clk 0:03:00]} 15. O-O {[%clk 0:03:04]}  Ne7 {[%clk 0:02:56]} 16. Nde3 {[%clk 0:02:58]}  Bxe3 {[%clk 0:02:55]} 17. Nxe3 {[%clk 0:02:58]}  Be6 {[%clk 0:02:54]} 18. b3 {[%clk 0:02:55]}  Qc7 {[%clk 0:02:53]} 19. Nf5 {[%clk 0:02:54]}  Rfd8 {[%clk 0:02:52]} 20. Qd3 {[%clk 0:02:43]}  Nc6 {[%clk 0:02:49]} 21. Rfd1 {[%clk 0:02:35]}  g6 {[%clk 0:02:45]} 22. Ne3 {[%clk 0:02:33]}  Qb6 {[%clk 0:02:37]} 23. h4 {[%clk 0:02:26]}  a4 {[%clk 0:02:10]} 24. Rab1 {[%clk 0:02:25]}  axb3 {[%clk 0:02:09]} 25. axb3 {[%clk 0:02:26]}  Ra2 {[%clk 0:02:04]} 26. Rd2 {[%clk 0:02:24]}  Qa7 {[%clk 0:01:54]} 27. Rbd1 {[%clk 0:02:09]}  Ra3 {[%clk 0:01:24]} 28. Nc2 {[%clk 0:01:57]}  Ra2 {[%clk 0:01:23]} 29. h5 {[%clk 0:01:48]}  gxh5 {[%clk 0:00:59]} 30. Qe2 {[%clk 0:01:18]}  h4 {[%clk 0:00:22]} 31. gxh4 {[%clk 0:01:07]}  Qe7 {[%clk 0:00:22]} 32. Qh5 {[%clk 0:01:05]}  Kh8 {[%clk 0:00:18]} 33. Ne1 {[%clk 0:00:30]}  Rxd2 {[%clk 0:00:17]} 34. Rxd2 {[%clk 0:00:30]}  Nd4 {[%clk 0:00:14]} 35. Nf3 {[%clk 0:00:15]}  Nxb3 {[%clk 0:00:13]} 36. Rb2 {[%clk 0:00:15]}  Bxc4 {[%clk 0:00:14]} 37. Rc2 {[%clk 0:00:10]}  Na5 {[%clk 0:00:11]} 38. Bh3 {[%clk 0:00:06]}  f6 {[%clk 0:00:08]} 39. Bf5 {[%clk 0:00:06]}  b3 {[%clk 0:00:08]} 40. Rc3 {[%clk 0:00:06]}  Rg8+ {[%clk 0:00:08]} 41. Kh2 {[%clk 0:00:05]}  b2 {[%clk 0:00:08]} 42. Nd2 {[%clk 0:00:06]}  Be6 {[%clk 0:00:05]} 43. Ra3 {[%clk 0:00:05]}  Bxf5 {[%clk 0:00:05]} 44. Qxf5 {[%clk 0:00:06]}  Nc4 {[%clk 0:00:05]} 45. Rb3 {[%clk 0:00:05]}  Nxd2 {[%clk 0:00:05]} 46. Rxb2 {[%clk 0:00:06]}  Nc4 {[%clk 0:00:05]} 47. Rc2 {[%clk 0:00:05]}  Nb6 {[%clk 0:00:05]} 48. Rc6 {[%clk 0:00:05]}  Na8 {[%clk 0:00:03]} 49. Ra6 {[%clk 0:00:05]}  Qg7 {[%clk 0:00:04]} 50. Qf3 {[%clk 0:00:04]}  Qg1+ {[%clk 0:00:04]} 51. Kh3 {[%clk 0:00:05]}  Qg7 {[%clk 0:00:04]} 52. h5 {[%clk 0:00:04]}  Nc7 {[%clk 0:00:05]} 53. Ra7 {[%clk 0:00:04]}  Qd7+ {[%clk 0:00:04]} 54. Kh2 {[%clk 0:00:04]}  Qe7 {[%clk 0:00:05]} 55. h6 {[%clk 0:00:04]}  f5 {[%clk 0:00:05]} 56. exf5 {[%clk 0:00:04]}  Qh4+ {[%clk 0:00:05]} 57. Qh3 {[%clk 0:00:05]}  Qxf2+ {[%clk 0:00:05]} 58. Kh1 {[%clk 0:00:05]}  Qg1# {[%clk 0:00:05]} 0-1


[Site "https://www.chess.com"]

[Event "Titled Tuesday Blitz May 4 2021"]
[White "Shahinyan, David"]
[Black "Ozkan, Ervin"]
[WhiteFideId "13304380"]
[BlackFideId "6306004"]
[WhiteElo "2372"]
[BlackElo "2226"]
[Result "1-0"]
[Round "04"]
[TimeControl "180+1"]
[Date "2021.05.04"]
[WhiteClock "0:01:10"]
[BlackClock "0:00:12"]

1. e4 {[%clk 0:03:00]}  e5 {[%clk 0:03:00]} 2. Nf3 {[%clk 0:03:00]}  Nf6 {[%clk 0:03:00]} 3. d4 {[%clk 0:03:00]}  Nxe4 {[%clk 0:03:00]} 4. dxe5 {[%clk 0:02:59]}  d5 {[%clk 0:02:54]} 5. exd6 {[%clk 0:02:57]}  Bxd6 {[%clk 0:02:50]} 6. Bd3 {[%clk 0:02:57]}  Nc5 {[%clk 0:02:42]} 7. Qe2+ {[%clk 0:02:54]}  Be6 {[%clk 0:02:31]} 8. O-O {[%clk 0:02:38]}  h6 {[%clk 0:02:07]} 9. Rd1 {[%clk 0:02:28]}  O-O {[%clk 0:01:58]} 10. Nc3 {[%clk 0:02:23]}  Re8 {[%clk 0:01:55]} 11. Bb5 {[%clk 0:02:13]}  c6 {[%clk 0:01:14]} 12. Bf4 {[%clk 0:01:46]}  Bd5 {[%clk 0:00:58]} 13. Be3 {[%clk 0:01:30]}  Bxf3 {[%clk 0:00:42]} 14. Qxf3 {[%clk 0:01:31]}  Qc7 {[%clk 0:00:32]} 15. Bc4 {[%clk 0:01:26]}  Ne6 {[%clk 0:00:33]} 16. h3 {[%clk 0:01:24]}  Nd7 {[%clk 0:00:32]} 17. Qf5 {[%clk 0:01:19]}  Ne5 {[%clk 0:00:28]} 18. Bb3 {[%clk 0:01:19]}  g6 {[%clk 0:00:19]} 19. Qe4 {[%clk 0:01:16]}  f5 {[%clk 0:00:17]} 20. Qd4 {[%clk 0:01:12]}  Bc5 {[%clk 0:00:12]} 21. Qxc5 {[%clk 0:01:10]} 1-0


[Site "https://www.chess.com"]

[Event "Titled Tuesday Blitz May 4 2021"]
[White "Shimelkov, Vasiliy"]
[Black "Isajevsky, Anton"]
[WhiteFideId "13701630"]
[BlackFideId "4142500"]
[WhiteElo "2073"]
[BlackElo "2510"]
[Result "0-1"]
[Round "04"]
[TimeControl "180+1"]
[Date "2021.05.04"]
[WhiteClock "0:00:09"]
[BlackClock "0:00:05"]

1. d4 {[%clk 0:02:20]}  d5 {[%clk 0:02:59]} 2. Nf3 {[%clk 0:02:19]}  Nf6 {[%clk 0:02:58]} 3. c4 {[%clk 0:02:19]}  e6 {[%clk 0:02:58]} 4. Nc3 {[%clk 0:02:20]}  Be7 {[%clk 0:02:57]} 5. Bg5 {[%clk 0:02:20]}  h6 {[%clk 0:02:56]} 6. Bh4 {[%clk 0:02:19]}  O-O {[%clk 0:02:56]} 7. e3 {[%clk 0:02:19]}  b6 {[%clk 0:02:56]} 8. Bd3 {[%clk 0:02:18]}  dxc4 {[%clk 0:02:56]} 9. Bxc4 {[%clk 0:02:18]}  Bb7 {[%clk 0:02:56]} 10. O-O {[%clk 0:02:18]}  Nbd7 {[%clk 0:02:55]} 11. Rc1 {[%clk 0:02:18]}  a6 {[%clk 0:02:54]} 12. Qe2 {[%clk 0:02:17]}  b5 {[%clk 0:02:54]} 13. Bd3 {[%clk 0:02:16]}  c5 {[%clk 0:02:54]} 14. Rfd1 {[%clk 0:02:15]}  Qb6 {[%clk 0:02:34]} 15. Bb1 {[%clk 0:02:11]}  Rfd8 {[%clk 0:02:24]} 16. Ne5 {[%clk 0:02:01]}  cxd4 {[%clk 0:02:23]} 17. exd4 {[%clk 0:01:59]}  Rac8 {[%clk 0:02:10]} 18. Qc2 {[%clk 0:01:28]}  Nf8 {[%clk 0:02:05]} 19. a3 {[%clk 0:01:06]}  Rxd4 {[%clk 0:01:43]} 20. Rxd4 {[%clk 0:00:49]}  Qxd4 {[%clk 0:01:44]} 21. Bg3 {[%clk 0:00:49]}  Be4 {[%clk 0:00:38]} 22. Qe2 {[%clk 0:00:44]}  Bxb1 {[%clk 0:00:38]} 23. Rxb1 {[%clk 0:00:43]}  Nd5 {[%clk 0:00:35]} 24. Nxd5 {[%clk 0:00:42]}  Qxd5 {[%clk 0:00:34]} 25. Rd1 {[%clk 0:00:42]}  Qb3 {[%clk 0:00:34]} 26. h3 {[%clk 0:00:41]}  Rc2 {[%clk 0:00:31]} 27. Qh5 {[%clk 0:00:36]}  g6 {[%clk 0:00:23]} 28. Qg4 {[%clk 0:00:34]}  h5 {[%clk 0:00:21]} 29. Qd4 {[%clk 0:00:30]}  Bf6 {[%clk 0:00:20]} 30. Qd6 {[%clk 0:00:22]}  Rxb2 {[%clk 0:00:17]} 31. Nc6 {[%clk 0:00:21]}  Rb1 {[%clk 0:00:16]} 32. Rxb1 {[%clk 0:00:20]}  Qxb1+ {[%clk 0:00:16]} 33. Kh2 {[%clk 0:00:21]}  Qe4 {[%clk 0:00:16]} 34. Qd7 {[%clk 0:00:20]}  Qd5 {[%clk 0:00:13]} 35. Qb7 {[%clk 0:00:19]}  a5 {[%clk 0:00:13]} 36. Nxa5 {[%clk 0:00:18]}  Qxb7 {[%clk 0:00:13]} 37. Nxb7 {[%clk 0:00:18]}  Bb2 {[%clk 0:00:10]} 38. Bd6 {[%clk 0:00:17]}  Nd7 {[%clk 0:00:09]} 39. Bb4 {[%clk 0:00:17]}  Nb6 {[%clk 0:00:10]} 40. Nd6 {[%clk 0:00:17]}  Nc4 {[%clk 0:00:07]} 41. Nxb5 {[%clk 0:00:17]}  f6 {[%clk 0:00:04]} 42. a4 {[%clk 0:00:17]}  Kf7 {[%clk 0:00:05]} 43. a5 {[%clk 0:00:17]}  Be5+ {[%clk 0:00:05]} 44. g3 {[%clk 0:00:16]}  Ke8 {[%clk 0:00:05]} 45. a6 {[%clk 0:00:16]}  Kd7 {[%clk 0:00:05]} 46. a7 {[%clk 0:00:16]}  Nb6 {[%clk 0:00:05]} 47. Bc5 {[%clk 0:00:16]}  Na8 {[%clk 0:00:05]} 48. Kg2 {[%clk 0:00:16]}  Kc6 {[%clk 0:00:06]} 49. Nd4+ {[%clk 0:00:11]}  Kxc5 {[%clk 0:00:05]} 50. Nxe6+ {[%clk 0:00:12]}  Kb6 {[%clk 0:00:06]} 51. Nf8 {[%clk 0:00:12]}  g5 {[%clk 0:00:06]} 52. Kf3 {[%clk 0:00:12]}  Kxa7 {[%clk 0:00:06]} 53. Ke4 {[%clk 0:00:13]}  Nb6 {[%clk 0:00:05]} 54. f4 {[%clk 0:00:14]}  gxf4 {[%clk 0:00:05]} 55. gxf4 {[%clk 0:00:14]}  Bb2 {[%clk 0:00:06]} 56. Kf5 {[%clk 0:00:14]}  Nd5 {[%clk 0:00:06]} 57. Nd7 {[%clk 0:00:13]}  Kb7 {[%clk 0:00:05]} 58. h4 {[%clk 0:00:12]}  Kc6 {[%clk 0:00:06]} 59. Nf8 {[%clk 0:00:12]}  Kd6 {[%clk 0:00:05]} 60. Ng6 {[%clk 0:00:11]}  Kd7 {[%clk 0:00:04]} 61. Ke4 {[%clk 0:00:09]}  Ne7 {[%clk 0:00:03]} 62. Nf8+ {[%clk 0:00:09]}  Kd6 {[%clk 0:00:04]} 63. Nh7 {[%clk 0:00:09]}  f5+ {[%clk 0:00:04]} 64. Kf3 {[%clk 0:00:09]}  Ke6 {[%clk 0:00:04]} 65. Ng5+ {[%clk 0:00:08]}  Kf6 {[%clk 0:00:04]} 66. Nh7+ {[%clk 0:00:08]}  Kg6 {[%clk 0:00:03]} 67. Nf8+ {[%clk 0:00:09]}  Kf7 {[%clk 0:00:04]} 68. Nh7 {[%clk 0:00:08]}  Ng6 {[%clk 0:00:04]} 69. Ng5+ {[%clk 0:00:08]}  Ke7 {[%clk 0:00:04]} 70. Kg3 {[%clk 0:00:08]}  Bc1 {[%clk 0:00:05]} 71. Nh3 {[%clk 0:00:08]}  Kd6 {[%clk 0:00:04]} 72. Ng5 {[%clk 0:00:07]}  Bxf4+ {[%clk 0:00:03]} 73. Kf3 {[%clk 0:00:08]}  Bxg5 {[%clk 0:00:04]} 74. hxg5 {[%clk 0:00:09]}  Ke5 {[%clk 0:00:05]} 0-1


[Site "https://www.chess.com"]

[Event "Titled Tuesday Blitz May 4 2021"]
[White "Smith, Shreyas"]
[Black "Reprintsev, Alexander"]
[WhiteFideId "7400713"]
[BlackFideId "14100541"]
[WhiteElo "2129"]
[BlackElo "2194"]
[Result "0-1"]
[Round "04"]
[TimeControl "180+1"]
[Date "2021.05.04"]
[WhiteClock "0:01:32"]
[BlackClock "0:01:51"]

1. d4 {[%clk 0:03:00]}  d5 {[%clk 0:02:10]} 2. c4 {[%clk 0:02:59]}  e5 {[%clk 0:02:10]} 3. dxe5 {[%clk 0:02:58]}  d4 {[%clk 0:02:10]} 4. Nf3 {[%clk 0:02:57]}  Nc6 {[%clk 0:02:10]} 5. a3 {[%clk 0:02:57]}  g6 {[%clk 0:02:10]} 6. b4 {[%clk 0:02:37]}  Bg7 {[%clk 0:02:08]} 7. Bb2 {[%clk 0:02:35]}  Nh6 {[%clk 0:02:07]} 8. Nbd2 {[%clk 0:02:33]}  O-O {[%clk 0:02:06]} 9. Nb3 {[%clk 0:02:24]}  a5 {[%clk 0:02:04]} 10. Nbxd4 {[%clk 0:02:12]}  Nxe5 {[%clk 0:01:59]} 11. Nxe5 {[%clk 0:02:08]}  Bxe5 {[%clk 0:01:59]} 12. bxa5 {[%clk 0:01:49]}  c5 {[%clk 0:01:57]} 13. Qd2 {[%clk 0:01:35]}  Bxd4 {[%clk 0:01:53]} 14. Bxd4 {[%clk 0:01:33]}  Qxd4 {[%clk 0:01:52]} 15. Qxd4 {[%clk 0:01:32]}  cxd4 {[%clk 0:01:53]} 16. Rd1 {[%clk 0:01:32]}  Rxa5 {[%clk 0:01:51]} 0-1


[Site "https://www.chess.com"]

[Event "Titled Tuesday Blitz May 4 2021"]
[White "Srisshhhtea"]
[Black "Foerster-Yialamas, Lucas"]
[BlackFideId "30901774"]
[WhiteElo "2375"]
[BlackElo "1744"]
[Result "1-0"]
[Round "04"]
[TimeControl "180+1"]
[Date "2021.05.04"]
[WhiteClock "0:02:13"]
[BlackClock "0:01:28"]

1. d4 {[%clk 0:03:00]}  Nf6 {[%clk 0:02:57]} 2. c4 {[%clk 0:03:01]}  g6 {[%clk 0:02:57]} 3. Nc3 {[%clk 0:03:01]}  d5 {[%clk 0:02:58]} 4. Nf3 {[%clk 0:03:00]}  Bg7 {[%clk 0:02:57]} 5. Bf4 {[%clk 0:03:01]}  O-O {[%clk 0:02:56]} 6. e3 {[%clk 0:03:01]}  dxc4 {[%clk 0:02:55]} 7. Bxc4 {[%clk 0:03:02]}  c5 {[%clk 0:02:55]} 8. dxc5 {[%clk 0:03:02]}  Qa5 {[%clk 0:02:55]} 9. O-O {[%clk 0:03:01]}  Qxc5 {[%clk 0:02:54]} 10. Bb3 {[%clk 0:03:01]}  Nc6 {[%clk 0:02:53]} 11. Rc1 {[%clk 0:03:02]}  Qa5 {[%clk 0:02:51]} 12. h3 {[%clk 0:03:02]}  Rd8 {[%clk 0:02:47]} 13. Qe2 {[%clk 0:03:03]}  a6 {[%clk 0:02:44]} 14. Rfd1 {[%clk 0:02:50]}  b5 {[%clk 0:02:36]} 15. Rxd8+ {[%clk 0:02:47]}  Qxd8 {[%clk 0:02:37]} 16. Nxb5 {[%clk 0:02:45]}  axb5 {[%clk 0:02:35]} 17. Rxc6 {[%clk 0:02:43]}  Bf5 {[%clk 0:02:32]} 18. Ne5 {[%clk 0:02:40]}  e6 {[%clk 0:02:24]} 19. Qxb5 {[%clk 0:02:39]}  Nh5 {[%clk 0:02:15]} 20. Qb7 {[%clk 0:02:27]}  Nxf4 {[%clk 0:01:59]} 21. Qxf7+ {[%clk 0:02:20]}  Kh8 {[%clk 0:01:57]} 22. exf4 {[%clk 0:02:20]}  Bh6 {[%clk 0:01:28]} 23. Rc7 {[%clk 0:02:13]} 1-0


[Site "https://www.chess.com"]

[Event "Titled Tuesday Blitz May 4 2021"]
[White "Sumaneev, Dmitry"]
[Black "Lysenko, Volodymyr"]
[WhiteFideId "4125312"]
[BlackFideId "14175770"]
[WhiteElo "2505"]
[BlackElo "1957"]
[Result "1-0"]
[Round "04"]
[TimeControl "180+1"]
[Date "2021.05.04"]
[WhiteClock "0:00:19"]
[BlackClock "0:00:02"]

1. e4 {[%clk 0:03:00]}  e6 {[%clk 0:02:58]} 2. Qe2 {[%clk 0:03:00]}  Ne7 {[%clk 0:02:49]} 3. Nf3 {[%clk 0:02:59]}  c5 {[%clk 0:02:48]} 4. g3 {[%clk 0:02:55]}  Nbc6 {[%clk 0:02:48]} 5. Bg2 {[%clk 0:02:55]}  d5 {[%clk 0:02:41]} 6. d3 {[%clk 0:02:47]}  dxe4 {[%clk 0:02:35]} 7. dxe4 {[%clk 0:02:48]}  e5 {[%clk 0:02:33]} 8. O-O {[%clk 0:02:46]}  Ng6 {[%clk 0:02:25]} 9. c3 {[%clk 0:02:35]}  Be7 {[%clk 0:02:23]} 10. Nbd2 {[%clk 0:02:34]}  O-O {[%clk 0:02:19]} 11. Nc4 {[%clk 0:02:34]}  b5 {[%clk 0:02:12]} 12. Ne3 {[%clk 0:02:32]}  a6 {[%clk 0:02:08]} 13. Nd5 {[%clk 0:02:08]}  Re8 {[%clk 0:02:02]} 14. Be3 {[%clk 0:02:06]}  Bf8 {[%clk 0:01:57]} 15. Rfd1 {[%clk 0:02:03]}  Be6 {[%clk 0:01:44]} 16. a4 {[%clk 0:01:41]}  Qb8 {[%clk 0:01:08]} 17. axb5 {[%clk 0:01:39]}  Qxb5 {[%clk 0:01:01]} 18. Bf1 {[%clk 0:01:29]}  Bxd5 {[%clk 0:00:41]} 19. exd5 {[%clk 0:01:24]}  Qxe2 {[%clk 0:00:40]} 20. Bxe2 {[%clk 0:01:24]}  Nce7 {[%clk 0:00:37]} 21. Rxa6 {[%clk 0:01:14]}  Nf5 {[%clk 0:00:32]} 22. Rxa8 {[%clk 0:01:00]}  Rxa8 {[%clk 0:00:33]} 23. Bc1 {[%clk 0:00:59]}  h6 {[%clk 0:00:20]} 24. Nd2 {[%clk 0:00:53]}  Rd8 {[%clk 0:00:17]} 25. Nc4 {[%clk 0:00:51]}  f6 {[%clk 0:00:12]} 26. Bg4 {[%clk 0:00:46]}  Nfe7 {[%clk 0:00:10]} 27. Be6+ {[%clk 0:00:42]}  Kh8 {[%clk 0:00:09]} 28. Be3 {[%clk 0:00:40]}  f5 {[%clk 0:00:06]} 29. Bxc5 {[%clk 0:00:37]}  f4 {[%clk 0:00:06]} 30. Bxe7 {[%clk 0:00:31]}  Bxe7 {[%clk 0:00:07]} 31. d6 {[%clk 0:00:31]}  Bf6 {[%clk 0:00:07]} 32. d7 {[%clk 0:00:26]}  fxg3 {[%clk 0:00:06]} 33. hxg3 {[%clk 0:00:26]}  Nf8 {[%clk 0:00:06]} 34. Bh3 {[%clk 0:00:24]}  g5 {[%clk 0:00:06]} 35. Na5 {[%clk 0:00:23]}  Kg7 {[%clk 0:00:01]} 36. Nc6 {[%clk 0:00:22]}  Kf7 {[%clk 0:00:01]} 37. Nxd8+ {[%clk 0:00:21]}  Bxd8 {[%clk 0:00:02]} 38. b4 {[%clk 0:00:20]}  Ke7 {[%clk 0:00:02]} 39. c4 {[%clk 0:00:20]}  h5 {[%clk 0:00:02]} 40. Bf5 {[%clk 0:00:19]}  h4 {[%clk 0:00:01]} 41. c5 {[%clk 0:00:18]}  hxg3 {[%clk 0:00:01]} 42. fxg3 {[%clk 0:00:19]}  Bc7 {[%clk 0:00:02]} 43. b5 {[%clk 0:00:19]} 1-0


[Site "https://www.chess.com"]